{"text_format":"1","workbook":"xlsx","n_sheets":1,"sheets":["Sheet1"],"not_rendered":{"charts":0,"images":0,"macros":1,"external_links":0,"defined_names":0,"comments":0,"pivot_tables":0},"unopened":[],"bounds":{"document_bytes":16777216,"sheet_cells":100000,"rows_first":2000,"rows_last":500,"rows_between":2000,"halvings":0,"cell_chars":16384,"cell_head_chars":4096},"cells_cut":0,"cells_raw":0,"read":"whole","date_system":"1900"}

{"sheet":"Sheet1","index":0,"n_rows":32,"n_cols":11,"rows_kept":32,"cut":false,"hidden":false,"merged":[[0,0,1,10]]}
["القـــــــــــــــــــــــــائمة الاسمية للتلاميـــــــــــــــــــــــــــــــــــذ"]
[]
["الرقم","الاسم  و اللقب","م.المستمرة","تط/شفهي","الفرض 1","الفرض 2","م.الفروض","الاختبار","الاختبار/40","المعدل","الملاحظة"]
[1,"أحمد محمد سعيد",15,25,30,70,{"$f":"IF(COUNTBLANK($E4:$F4)=0,SUM(E4:F4)/2,\"\")","v":50},80,{"$f":"IF($H4=\"\",\"\",IF(ISTEXT($H4),$H4,$H4*2))","v":160},{"$f":"IF(COUNTBLANK($C4:$H4)=0,ROUND(SUM($C4:$D4,$G4,$I4)/5,2),\"\")","v":50},{"$f":"IF(J4=\"\",\"\",IF(J4>=18,\"نتائج ممتازة\",IF(J4>=14,\"نتائج جيدة جدا\",IF(J4>=12,\" نتائج جد حسنة\",IF(J4>=10,\"نتائج متوسطة\",IF(J4>=7,\"نتائج ضعيفة\",\"نتائج ضعيفة جدا\"))))))","v":"نتائج ممتازة"}]
[2,"مراد فواز اسماعيل",18,12,14,15,14.5,18,36,16.100000000000001,{"$f":"IF(J5=\"\",\"\",IF(J5>=18,\"نتائج ممتازة\",IF(J5>=14,\"نتائج جيدة جدا\",IF(J5>=12,\" نتائج جد حسنة\",IF(J5>=10,\"نتائج متوسطة\",IF(J5>=7,\"نتائج ضعيفة\",\"نتائج ضعيفة جدا\"))))))","v":"نتائج جيدة جدا"}]
[3,"سيد عبد الفتاح",23,10,20,22,21,38,76,26,{"$f":"IF(J6=\"\",\"\",IF(J6>=18,\"نتائج ممتازة\",IF(J6>=14,\"نتائج جيدة جدا\",IF(J6>=12,\" نتائج جد حسنة\",IF(J6>=10,\"نتائج متوسطة\",IF(J6>=7,\"نتائج ضعيفة\",\"نتائج ضعيفة جدا\"))))))","v":"نتائج ممتازة"}]
[4,"منى سراج الدين",10,45,25,25,25,18,36,23.2,"نتائج ممتازة"]
[null,null,null,null,null,null,"",null,"","",""]
[null,null,null,null,null,null,"",null,"","",""]
[null,null,null,null,null,null,"",null,"","",""]
[null,null,null,null,null,null,"",null,"","",""]
[null,null,null,null,null,null,"",null,"","",""]
[null,null,null,null,null,null,"",null,"","",""]
[null,null,null,null,null,null,"",null,"","",""]
[null,null,null,null,null,null,"",null,"","",""]
[null,null,null,null,null,null,"",null,"","",""]
[null,null,null,null,null,null,"",null,"","",""]
[null,null,null,null,null,null,"",null,"","",""]
[null,null,null,null,null,null,"",null,"","",""]
[null,null,null,null,null,null,"",null,"","",""]
[null,null,null,null,null,null,"",null,"","",""]
[null,null,null,null,null,null,"",null,"","",""]
[null,null,null,null,null,null,"",null,"","",""]
[null,null,null,null,null,null,"",null,"","",""]
[null,null,null,null,null,null,"",null,"","",""]
[null,null,null,null,null,null,"",null,"","",""]
[null,null,null,null,null,null,"",null,"","",""]
[null,null,null,null,null,null,"",null,"","",""]
[null,null,null,null,null,null,"",null,"","",""]
[null,null,null,null,null,null,"",null,"","",""]
[null,null,null,null,null,null,"",null,"","",""]
[null,null,null,null,null,null,"",null,"","",""]